bitfinex/quotes_SOLUSD_20240906
["timestamp","ask_amount","ask_price","bid_price","bid_amount"]
[1725584664259,7.734,129.3,129.25,7.7368]
[1725584664461,20.0,129.29,129.25,7.7368]
[1725584664664,20.0,129.29,129.26,7.7362]
[1725584665462,7.734,129.3,129.27,0.98010218]
[1725584666038,7.7358,129.27,129.23,15.5993]
[1725584666240,7.7358,129.27,129.22,7.7386]
[1725584666445,7.7352,129.28,129.23,7.7381]
[1725584667464,20.0,129.27,129.23,7.7381]
[1725584671648,20.0,129.27,129.24,8.5705521]
[1725584671958,20.0,129.28,129.24,8.5705521]
[1725584672358,20.0,129.28,129.25,7.7368]
[1725584675147,27.7351,129.28,129.24,7.7373]
[1725584675850,7.7359,129.27,129.23,27.0824]
[1725584676077,7.7359,129.27,129.2,21.7072]
[1725584676078,27.7363,129.26,129.21,7.7392]
[1725584679950,20.0,129.26,129.22,20.482652]
[1725584680853,20.0,129.26,129.22,19.3464]
[1725584681264,20.0,129.26,129.23,7.738]
[1725584682155,27.7364,129.26,129.22,27.0851]
[1725584687251,20.0,129.26,129.22,27.0851]
[1725584687579,27.7364,129.26,129.22,19.3464]
[1725584687757,27.7364,129.26,129.21,7.7391]
[1725584687758,7.7369,129.25,129.21,7.7391]
[1725584687965,27.7376,129.24,129.2,7.7398]
[1725584688164,20.0,129.23,129.2,7.7398]
[1725584692156,20.0,129.23,129.19,19.3504]
[1725584692475,7.7371,129.25,129.21,7.7392]
[1725584692687,20.0,129.24,129.21,9.28670212]
[1725584692859,20.0,129.24,129.23,7.7381]
[1725584693056,20.0,129.24,129.22,7.7385]
[1725584693304,20.0,129.25,129.22,7.7385]
[1725584693473,27.7369,129.25,129.21,27.0866]
[1725584694578,7.7375,129.24,129.21,19.3473]
[1725584694771,20.0,129.23,129.21,19.3473]
[1725584700680,27.7381,129.23,129.19,7.7404]
[1725584701777,20.0,129.23,129.15,58.0703]
[1725584701978,7.7399,129.2,129.16,7.7421]
[1725584702283,20.0,129.19,129.15,27.0995]
[1725584706963,27.7407,129.19,129.15,19.3568]
[1725584708803,27.7407,129.19,129.15,27.0996]
[1725584714283,27.7407,129.19,129.14,8.5739386]
[1725584714882,27.7407,129.19,129.15,7.7425]
[1725584716201,7.7416,129.18,129.14,20.1887386]
[1725584716385,35.6749,129.17,129.14,0.8308386]
[1725584716581,27.7424,129.16,129.14,0.8308386]
[1725584717400,7.7429,129.15,129.14,0.8308386]
[1725584717700,27.7429,129.15,129.14,0.8308386]
[1725584718800,72.7429,129.15,129.14,0.8308386]
[1725584724216,27.7429,129.15,129.14,0.8308386]
[1725584724583,20.0,129.15,129.14,0.8308386]
[1725584724785,27.7429,129.15,129.14,0.8308386]
[1725584725306,7.7422,129.17,129.14,0.8308386]
[1725584726508,7.7412,129.18,129.14,0.8308386]
[1725584727899,20.0,129.17,129.14,0.8308386]
[1725584728103,27.7418,129.17,129.14,0.8308386]
[1725584730987,20.0,129.17,129.14,0.8308386]
[1725584732184,7.7424,129.16,129.14,0.8308386]
[1725584732392,20.0,129.15,129.14,0.8308386]
[1725584734305,20.0,129.15,129.14,8.5743386]
[1725584734697,20.0,129.15,129.14,0.8308386]
[1725584738289,20.0,129.15,129.14,8.5743386]
[1725584738592,7.7398,129.21,129.16,7.7421]
[1725584738798,7.7398,129.21,129.17,7.7416]
[1725584738996,7.7389,129.22,129.17,7.7416]
[1725584740119,20.0,129.21,129.17,7.7416]
[1725584740828,27.7394,129.21,129.17,7.7416]
[1725584741812,45.0,129.2,129.14,0.8308386]
[1725584741996,20.0,129.19,129.14,0.8308386]
[1725584742206,7.7413,129.18,129.14,0.8308386]
[1725584742406,27.7406,129.19,129.14,8.5738386]
[1725584742810,7.7413,129.18,129.14,8.5738386]
[1725584745413,20.0,129.19,129.16,7.7423]
[1725584747111,20.0,129.19,129.15,19.3568]
[1725584747309,7.7391,129.22,129.18,27.0932]
[1725584747310,20.0,129.21,129.18,27.0932]
[1725584747728,7.7386,129.23,129.18,27.0932]
[1725584747910,19.3414,129.26,129.18,27.0932]
[1725584748110,7.7403,129.2,129.15,27.0991]
[1725584748310,19.3445,129.24,129.17,7.7416]
[1725584748517,7.7389,129.22,129.18,7.7407]
[1725584748929,20.0,129.21,129.18,7.7407]
[1725584750030,27.7394,129.21,129.17,27.0948]
[1725584751326,20.0,129.21,129.17,19.3532]
[1725584751522,22.28988032,129.27,129.17,19.3532]
[1725584751930,7.7393,129.21,129.17,27.0948]
[1725584752117,7.7401,129.2,129.16,7.7421]
[1725584753231,7.7395,129.21,129.16,7.7421]
[1725584753434,20.0,129.2,129.16,7.7421]
[1725584754727,20.0,129.2,129.14,27.9316386]
[1725584754728,7.7406,129.19,129.14,27.9316386]
[1725584755308,7.7413,129.18,129.14,27.9316386]
[1725584756314,7.7407,129.19,129.15,7.7428]
[1725584756523,20.0,129.18,129.15,7.7428]
[1725584757836,20.0,129.18,129.14,27.9319386]
[1725584758016,27.7411,129.18,129.14,27.9319386]
[1725584758508,20.0,129.18,129.14,27.9319386]
[1725584758713,7.7407,129.19,129.14,27.9319386]
[1725584759010,20.0,129.18,129.15,1.54835595]
[1725584760744,20.0,129.18,129.14,27.9319386]
[1725584762536,27.7411,129.18,129.14,27.9319386]
[1725584762733,7.7418,129.17,129.14,20.1886386]
[1725584763237,7.7418,129.17,129.14,0.8308386]
[1725584765630,27.7423,129.16,129.14,0.8308386]
[1725584765934,7.7423,129.16,129.14,0.8308386]
[1725584766131,20.0,129.18,129.14,0.8308386]
[1725584766332,27.7408,129.19,129.15,7.7427]
[1725584768538,7.7392,129.22,129.17,7.7413]
[1725584768838,7.74,129.2,129.16,7.7421]
[1725584769030,19.3447,129.24,129.15,33.6237]
[1725584769337,19.3447,129.24,129.16,7.7422]
[1725584769724,7.7397,129.21,129.16,7.7422]
[1725584769930,20.0,129.2,129.16,7.7422]
[1725584770317,20.0,129.2,129.15,25.881]
[1725584770532,7.7385,129.23,129.18,7.7406]
[1725584771439,7.7389,129.22,129.17,42.3168]
[1725584771624,7.7399,129.2,129.17,15.222]
[1725584771828,7.7394,129.21,129.17,15.222]
[1725584772042,20.0,129.2,129.17,15.222]
[1725584772339,20.0,129.2,129.17,22.9635]
[1725584772542,20.0,129.21,129.17,22.9635]
[1725584772742,20.0,129.21,129.18,7.741]
[1725584772947,7.7383,129.23,129.17,15.222]
[1725584773118,20.0,129.22,129.17,15.222]
[1725584773323,7.7375,129.24,129.19,7.74]
[1725584774654,20.0,129.23,129.21,7.7393]
[1725584774829,20.0,129.24,129.21,7.7393]
[1725584775222,7.7364,129.26,129.22,0.83056966]
[1725584775924,7.7364,129.26,129.22,1.5475299]
[1725584776545,20.0,129.25,129.22,1.5475299]
[1725584777741,20.0,129.25,129.21,22.9613]
[1725584778543,20.0,129.25,129.21,23.79257349]
[1725584779049,20.0,129.25,129.22,7.7386]
[1725584779219,20.0,129.26,129.23,8.58976251]
[1725584779625,20.0,129.26,129.22,7.7385]
[1725584780648,27.7367,129.26,129.21,22.9609]
[1725584780944,7.737,129.25,129.21,22.9609]
[1725584781142,27.7365,129.26,129.21,22.9609]
[1725584788442,20.0,129.26,129.22,7.7387]
[1725584788651,22.9261703,129.3,129.22,7.7387]
[1725584788850,45.0,129.29,129.22,7.7387]
[1725584789157,20.0,129.28,129.22,7.7387]
[1725584790167,7.7363,129.26,129.22,7.7387]
[1725584790360,7.7363,129.26,129.21,15.222]
[1725584790361,20.0,129.25,129.21,22.9611]
[1725584790678,27.7371,129.25,129.21,22.9611]
[1725584793668,7.7377,129.24,129.21,15.222]
[1725584793852,27.7383,129.23,129.21,15.222]
[1725584794045,7.7383,129.23,129.21,15.222]
[1725584795765,2.88760368,129.31,129.23,15.5222]
[1725584795956,7.7325,129.33,129.28,7.7351]
[1725584796152,19.3267,129.36,129.26,19.3403]
[1725584796375,7.7304,129.36,129.28,19.3366]
[1725584796555,7.7304,129.36,129.27,17.06811828]
[1725584796556,7.7304,129.36,129.29,1.54567914]
[1725584796878,7.7304,129.36,129.28,45.0]
[1725584797060,6.3617,129.4,129.32,7.7326]
[1725584797260,7.7292,129.38,129.33,8.23317479]
[1725584797458,7.7298,129.37,129.32,7.7327]
[1725584798391,7.7304,129.36,129.31,14.0973]
[1725584798580,7.7321,129.33,129.28,59.2864]
[1725584798874,7.731,129.35,129.3,7.7336]
[1725584799058,20.0,129.34,129.3,7.7336]
[1725584800181,20.0,129.34,129.31,7.7331]
[1725584800355,20.0,129.35,129.31,7.7331]
[1725584801785,27.731,129.35,129.3,7.7338]
[1725584803078,7.7316,129.34,129.29,27.0696]
[1725584803390,20.0,129.33,129.29,27.0696]
[1725584803768,20.0,129.33,129.28,6.5514]
[1725584804074,20.0,129.35,129.27,15.5222]
[1725584804278,7.7333,129.31,129.27,15.5222]
[1725584804462,20.0,129.3,129.27,15.5222]
[1725584808156,7.7316,129.34,129.28,20.88363252]
[1725584808380,7.7305,129.36,129.31,7.7332]
[1725584808577,7.7305,129.36,129.32,1.54629581]
[1725584808766,7.7305,129.36,129.32,9.27889581]
[1725584808968,7.7305,129.36,129.32,1.54629581]
[1725584809176,7.7305,129.36,129.31,7.7331]
[1725584810165,20.0,129.35,129.31,7.7331]
[1725584811089,27.7314,129.35,129.3,27.068]
[1725584811785,7.7322,129.33,129.28,7.735]
[1725584812085,27.7327,129.32,129.28,7.735]
[1725584812295,27.7327,129.32,129.27,42.5962]
[1725584812968,27.7327,129.32,129.28,7.735]
[1725584814083,7.7335,129.31,129.27,42.5962]
[1725584814270,20.0,129.3,129.27,42.5962]
[1725584826299,28.34682536,129.36,129.29,7.7344]
[1725584826482,7.7305,129.36,129.31,7.7329]
[1725584828086,7.7309,129.35,129.31,7.7329]
[1725584828601,20.0,129.34,129.31,7.7329]
[1725584829381,27.7316,129.34,129.3,7.7338]
[1725584829680,7.7321,129.33,129.29,27.0702]
[1725584829876,20.0,129.32,129.29,27.0702]
[1725584830181,20.0,129.32,129.27,23.2573]
[1725584830602,20.0,129.36,129.27,23.2573]
[1725584830792,45.0,129.35,129.27,23.2573]
[1725584831209,7.7328,129.32,129.28,7.7349]
[1725584831800,7.732,129.34,129.28,19.3367]
[1725584831983,7.7328,129.32,129.28,19.3367]
[1725584832185,7.7322,129.33,129.28,27.0713]
[1725584832502,20.0,129.32,129.3,7.7339]
[1725584833003,20.0,129.34,129.3,7.7339]
[1725584833505,27.7317,129.34,129.3,7.7339]
[1725584835208,20.0,129.34,129.31,7.7333]
[1725584836005,20.0,129.34,129.3,7.7337]
[1725584836306,27.7317,129.34,129.3,7.7337]
[1725584836790,27.7317,129.34,129.31,1.54641221]
[1725584836987,27.7317,129.34,129.3,7.7337]
[1725584837188,20.0,129.34,129.31,7.7331]
[1725584837391,15.044,129.38,129.32,0.54210675]
[1725584837392,20.0,129.37,129.32,0.54210675]
[1725584837705,15.044,129.38,129.31,1.54626839]
[1725584837904,7.7298,129.37,129.31,1.54626839]
[1725584838308,7.7298,129.37,129.33,7.7321]
[1725584838613,7.7298,129.37,129.31,45.0]
[1725584838614,7.7314,129.35,129.31,7.7332]
[1725584839202,20.0,129.34,129.31,7.7332]
[1725584842608,20.0,129.34,129.32,8.38753743]
[1725584842797,7.7299,129.37,129.33,8.38716998]
[1725584843113,20.0,129.36,129.33,8.38716998]
[1725584843314,20.0,129.37,129.33,8.38716998]
[1725584843704,20.0,129.37,129.34,0.97500817]
[1725584844296,7.7281,129.4,129.34,0.97500817]
[1725584844704,7.7281,129.4,129.35,7.7304]
[1725584844911,7.7281,129.4,129.36,0.97711553]
[1725584845311,7.7281,129.4,129.36,8.70741553]
[1725584845512,20.0,129.39,129.36,8.70741553]
[1725584845696,20.0,129.39,129.36,0.97711553]
[1725584845910,66.26387682,129.52,129.39,7.7284]
[1725584845911,19.3116,129.46,129.39,7.7284]
[1725584846118,19.3116,129.46,129.4,0.98525499]
[1725584846824,7.7256,129.44,129.4,8.71650892]
[1725584846999,7.7256,129.44,129.4,7.7279]
[1725584847317,7.7256,129.44,129.39,7.7285]
[1725584848318,20.0,129.43,129.39,7.7285]
[1725584848513,27.7263,129.43,129.38,7.7291]
[1725584848916,7.7269,129.42,129.37,42.2631]
[1725584849117,27.7273,129.41,129.37,42.2631]
[1725584849321,7.7285,129.4,129.37,15.2097]
[1725584849627,7.7285,129.4,129.35,13.8969]
[1725584849823,7.7285,129.4,129.34,19.3286]
[1725584849824,27.7286,129.39,129.34,27.06]
[1725584849995,7.7286,129.39,129.34,27.06]
[1725584850716,7.7297,129.37,129.33,22.9417]
[1725584851623,7.7287,129.39,129.34,7.7314]
[1725584851808,20.0,129.38,129.34,7.7314]
[1725584852010,20.0,129.38,129.35,0.45315787]
[1725584853116,7.7281,129.4,129.33,34.5392]
[1725584853432,20.0,129.39,129.34,45.0]
[1725584853625,20.0,129.39,129.35,19.3265]
[1725584853836,27.7274,129.41,129.36,7.7302]
[1725584854325,7.7268,129.42,129.37,19.3238]
[1725584854527,7.7268,129.42,129.37,27.0534]
[1725584855117,7.7274,129.41,129.37,27.0534]
[1725584855324,7.7268,129.42,129.37,27.0534]
[1725584855832,20.0,129.41,129.37,27.0534]
[1725584857343,27.7277,129.41,129.37,19.3238]
[1725584860325,27.7277,129.41,129.37,27.0532]
[1725584866546,20.0,129.41,129.38,7.729]
[1725584866930,20.0,129.41,129.37,27.0531]
[1725584872061,27.7275,129.41,129.37,27.0531]
[1725584872238,7.7281,129.4,129.36,7.7302]
[1725584875431,7.7281,129.4,129.35,7.7304]
[1725584878150,27.7275,129.41,129.37,7.7297]
[1725584881140,20.0,129.41,129.38,7.7291]
[1725584881448,7.7263,129.43,129.39,0.97966317]
[1725584881651,7.7263,129.43,129.39,1.2248237]
[1725584881957,7.7263,129.43,129.38,19.3226]
[1725584882458,7.7263,129.43,129.39,7.7284]
[1725584883374,6.5065,129.46,129.38,19.3226]
[1725584883375,20.0,129.42,129.38,19.3226]
[1725584883545,25.8179,129.46,129.35,19.3266]
[1725584883546,7.7274,129.41,129.35,19.3266]
[1725584883746,7.7274,129.41,129.37,7.7297]
[1725584884050,20.0,129.4,129.37,7.7297]
[1725584886465,20.0,129.41,129.37,7.7297]
[1725584886664,20.0,129.41,129.38,7.7291]
[1725584888171,20.0,129.41,129.37,7.7295]
[1725584888545,27.7275,129.41,129.37,7.7295]
[1725584888761,27.7275,129.41,129.34,13.17180638]
[1725584888762,20.0,129.41,129.34,7.7314]
[1725584888969,7.7287,129.39,129.35,7.7309]
[1725584889166,20.0,129.38,129.35,7.7309]
[1725584889965,20.0,129.38,129.34,42.56063219]
[1725584890273,20.0,129.38,129.34,27.0598]
[1725584891154,7.7298,129.37,129.34,19.3285]
[1725584891755,7.7298,129.37,129.33,7.732]
[1725584891961,20.0,129.36,129.33,7.732]
[1725584892559,7.7316,129.34,129.31,19.3324]
[1725584892769,7.731,129.35,129.32,15.50155117]
[1725584893076,7.731,129.35,129.31,27.0657]
[1725584893256,7.731,129.35,129.32,15.50235115]
[1725584893462,7.731,129.35,129.31,27.0657]
[1725584893663,20.0,129.36,129.28,19.3371]
[1725584893851,7.7316,129.34,129.29,23.2366982]
[1725584894051,7.7316,129.34,129.3,15.5023982]
[1725584894270,7.7316,129.34,129.31,15.5023982]
[1725584894554,7.7316,129.34,129.32,15.5023982]
[1725584894859,7.7316,129.34,129.29,7.7343]
[1725584895060,7.7316,129.34,129.3,15.50287199]
[1725584895358,7.7316,129.34,129.31,15.50287199]
[1725584895557,7.7316,129.34,129.32,15.50287199]
[1725584895781,20.0,129.36,129.29,7.7343]
[1725584895782,7.7321,129.33,129.29,7.7345]
[1725584896086,7.7334,129.31,129.3,15.50301244]
[1725584896280,27.7334,129.31,129.3,15.50301244]
[1725584896880,43.3951,129.31,129.3,15.50301244]
[1725584897182,49.4122,129.31,129.3,15.50301244]
[1725584897957,7.7354,129.28,129.24,15.50356949]
[1725584898175,20.0,129.27,129.23,7.7381]
[1725584898381,20.0,129.27,129.24,15.50360152]
[1725584898572,20.0,129.27,129.25,15.50360152]
[1725584898766,20.0,129.27,129.26,15.50360152]
[1725584899073,20.0,129.27,129.23,7.7381]
[1725584900271,20.0,129.27,129.24,7.7375]
[1725584900577,20.0,129.28,129.24,7.7375]
[1725584903066,21.6788,129.31,129.25,1.54711]
[1725584903269,20.0,129.3,129.26,7.7358]
[1725584905287,20.0,129.3,129.27,9.28229303]
[1725584905586,27.7334,129.31,129.27,7.7354]
[1725584907793,20.0,129.31,129.26,19.34]
[1725584908296,27.7334,129.31,129.27,7.7356]
[1725584912094,20.0,129.31,129.28,19.337]
[1725584912294,15.8166,129.34,129.28,20.88385539]
[1725584913193,7.731,129.35,129.3,7.7334]
[1725584913377,7.731,129.35,129.31,1.5464312]
[1725584914592,20.0,129.34,129.31,1.5464312]
[1725584915897,20.0,129.34,129.3,7.7334]
[1725584916193,27.7317,129.34,129.29,7.7345]
[1725584916992,27.7317,129.34,129.3,7.7338]
[1725584917197,7.7322,129.33,129.29,7.7345]
[1725584917492,20.0,129.32,129.29,9.28119481]
[1725584917675,27.7317,129.34,129.3,1.54654159]
[1725584918603,27.7317,129.34,129.31,7.7328]
[1725584918604,20.0,129.34,129.31,7.7328]
[1725584918894,20.0,129.37,129.31,7.7328]
[1725584919100,7.7315,129.34,129.3,27.0674]
[1725584919297,20.0,129.33,129.3,27.0674]
[1725584920278,20.0,129.33,129.27,27.0736]
[1725584920498,20.0,129.35,129.27,27.0736]
[1725584920706,45.0,129.34,129.27,27.0736]
[1725584920907,20.0,129.33,129.27,27.0736]
[1725584921285,7.7334,129.31,129.27,27.0736]
[1725584921598,20.0,129.3,129.27,27.0736]
[1725584923491,7.7334,129.31,129.27,27.0736]
[1725584923693,20.0,129.3,129.27,27.0736]
[1725584924296,20.0,129.31,129.27,27.0736]
[1725584929909,20.0,129.31,129.28,9.28164348]
[1725584930295,20.0,129.31,129.28,7.7348]
[1725584930494,20.0,129.32,129.29,9.01515507]
[1725584930700,20.0,129.32,129.3,1.28099721]
[1725584930901,20.0,129.32,129.29,7.7343]
[1725584933186,20.0,129.32,129.26,15.1405]
[1725584933387,7.734,129.3,129.24,19.3427]
[1725584933599,20.0,129.29,129.24,19.3427]
[1725584934116,20.0,129.29,129.25,7.7368]
[1725584934292,20.0,129.29,129.26,7.7362]
[1725584935119,20.0,129.29,129.27,7.7356]
[1725584935410,27.7336,129.31,129.27,7.7356]
[1725584935987,27.7336,129.31,129.26,7.7361]
[1725584936985,27.7336,129.31,129.24,19.3427]
[1725584936986,7.7346,129.29,129.24,27.0801]
[1725584937193,20.0,129.28,129.24,27.0801]
[1725584937413,20.0,129.31,129.24,27.0801]
[1725584937586,45.0,129.3,129.24,27.0801]
[1725584937787,20.0,129.29,129.24,27.0801]
[1725584938400,7.7352,129.28,129.24,27.0801]
[1725584938598,20.0,129.27,129.24,27.0801]
[1725584939200,27.7353,129.28,129.24,19.3427]
[1725584941314,7.7364,129.26,129.22,7.7385]
[1725584941525,20.0,129.25,129.22,7.7385]
[1725584942195,20.0,129.26,129.22,7.7385]
[1725584942420,20.0,129.26,129.23,7.7381]
[1725584943097,20.0,129.26,129.22,7.7385]
[1725584945293,20.0,129.26,129.23,7.7379]
[1725584945511,20.0,129.27,129.23,7.7379]
[1725584946013,41.6046,129.27,129.16,22.2324]
[1725584946219,45.0,129.26,129.16,23.523]
[1725584946519,7.7404,129.2,129.15,27.099]
[1725584946691,20.0,129.19,129.15,27.099]
[1725584948303,27.7407,129.19,129.15,27.099]
[1725584950402,20.0,129.19,129.15,27.099]
[1725584951218,20.0,129.19,129.15,19.3563]
[1725584951399,20.0,129.23,129.17,7.7412]
[1725584951795,7.7393,129.21,129.16,7.7421]
[1725584951990,20.0,129.2,129.16,7.7421]
[1725584952698,40.9439,129.27,129.17,19.3536]
[1725584953000,7.738,129.24,129.17,80.1344]
[1725584953309,15.375,129.27,129.19,19.3507]
[1725584953511,7.7365,129.26,129.21,7.7388]
[1725584954818,20.0,129.25,129.21,7.7388]
[1725584955321,20.0,129.25,129.22,7.7386]
[1725584958429,20.0,129.25,129.23,7.738]
[1725584958630,6.2296,129.3,129.24,7.7375]
[1725584958826,27.7349,129.29,129.24,7.7375]
[1725584959341,7.7352,129.28,129.24,7.7375]
[1725584959509,20.0,129.29,129.23,27.0827]
[1725584959510,27.7357,129.27,129.23,27.0827]
[1725584960911,20.0,129.27,129.24,7.7375]
[1725584961229,20.0,129.29,129.24,7.7375]
[1725584961430,20.0,129.3,129.24,7.7375]
[1725584962332,7.7352,129.28,129.23,27.0826]
[1725584962635,20.0,129.27,129.23,27.0826]
[1725584968838,27.7358,129.27,129.23,27.0826]
[1725584969139,20.0,129.26,129.23,27.0826]
[1725584969943,20.0,129.26,129.22,23.5194]
[1725584969944,27.7364,129.26,129.22,23.5194]
[1725584970631,7.7369,129.25,129.22,15.7808]
[1725584971039,7.7369,129.25,129.2,27.0886]
[1725584971336,27.7376,129.24,129.2,19.3488]
[1725584972343,7.7382,129.23,129.19,15.716]
[1725584972643,7.7382,129.23,129.18,7.7409]
[1725584972814,7.7382,129.23,129.19,7.7404]
[1725584973221,20.0,129.24,129.17,19.3537]
[1725584973423,7.7389,129.22,129.17,27.0949]
[1725584974227,7.7408,129.19,129.16,1.54798264]
[1725584974428,7.7399,129.2,129.14,20.1894386]
[1725584974617,20.0,129.19,129.14,20.1894386]
[1725584974944,20.0,129.19,129.16,7.7422]
[1725584975241,20.0,129.2,129.16,7.7422]
[1725584978539,20.0,129.2,129.17,7.7416]
[1725584980637,25.15942131,129.26,129.18,9.28837991]
[1725584980838,7.7382,129.23,129.19,7.7401]
[1725584981038,7.7382,129.23,129.2,1.54725449]
[1725584982143,20.0,129.22,129.19,7.7402]
[1725584990535,20.0,129.22,129.18,27.0927]
[1725584990845,20.0,129.22,129.19,45.0]
[1725584991022,27.7388,129.22,129.18,27.0927]
[1725584991230,20.0,129.22,129.17,15.5534]
[1725584991423,7.7394,129.21,129.17,23.2949]
[1725584992339,7.7389,129.22,129.17,23.2949]
[1725584992643,20.0,129.21,129.17,23.2949]
[1725584994853,20.0,129.21,129.18,7.7409]
[1725584995639,20.0,129.22,129.18,7.7409]
[1725584999564,27.7388,129.22,129.18,7.7409]
[1725585000957,7.7394,129.21,129.17,42.6485]
[1725585001263,7.7399,129.2,129.17,15.5534]
[1725585001763,7.7405,129.19,129.14,35.4696386]
[1725585001941,7.74,129.2,129.14,35.4696386]
[1725585002142,20.0,129.19,129.14,35.4696386]
[1725585002950,20.0,129.19,129.15,45.0]
[1725585003346,20.0,129.19,129.16,7.7421]
[1725585003962,20.0,129.19,129.17,7.7416]
[1725585004167,27.7395,129.21,129.17,7.7416]
[1725585004344,27.7395,129.21,129.16,27.0974]
[1725585005069,27.7395,129.21,129.17,7.7415]
[1725585006271,20.0,129.21,129.17,7.7415]
[1725585006436,20.0,129.21,129.18,7.7409]
[1725585008860,25.13906116,129.26,129.18,19.3522]
[1725585009067,20.0,129.25,129.2,7.7393]
[1725585009373,20.0,129.25,129.21,1.54763807]
[1725585010145,7.7376,129.24,129.21,1.54763807]
[1725585010471,7.7376,129.24,129.19,7.7403]
[1725585010472,20.0,129.23,129.2,1.54766204]
[1725585010766,7.7364,129.26,129.21,1.54764952]
[1725585010968,38.6493,129.37,129.21,1.54764952]
[1725585010969,25.5997,129.32,129.21,1.54764952]
[1725585011150,25.5997,129.32,129.25,7.7366]
[1725585011350,7.734,129.3,129.25,7.7366]
[1725585011664,7.7335,129.31,129.26,7.7362]
[1725585011963,7.7333,129.31,129.26,27.0762]
[1725585012139,7.7344,129.3,129.26,19.3401]
[1725585012344,35.9603,129.33,129.24,7.7369]
[1725585012845,65.0,129.32,129.24,7.7369]
[1725585013250,7.7352,129.28,129.24,7.7369]
[1725585013553,20.0,129.27,129.24,7.7369]
[1725585014758,7.7364,129.26,129.23,19.3444]
[1725585014952,20.0,129.25,129.23,19.3444]
[1725585016269,20.0,129.26,129.23,19.3444]
[1725585016447,20.0,129.26,129.2,19.3489]
[1725585016769,20.0,129.28,129.2,27.0884]
[1725585016956,36.6293,129.28,129.2,27.0884]
[1725585017154,36.6293,129.28,129.19,15.8174]
[1725585017155,19.3399,129.27,129.19,15.8174]
[1725585017471,7.7382,129.23,129.19,15.8174]
[1725585017662,20.0,129.22,129.19,15.8174]
[1725585018966,20.0,129.22,129.18,7.7406]
[1725585019470,27.7389,129.22,129.18,7.7406]
[1725585019653,20.0,129.22,129.17,19.3534]
[1725585019859,7.7394,129.21,129.17,19.3534]
[1725585020060,20.0,129.2,129.17,19.3534]
[1725585023958,20.0,129.21,129.17,19.3534]
[1725585024679,20.0,129.21,129.18,1.54791761]
[1725585025267,20.0,129.21,129.18,9.28881761]
[1725585025573,20.0,129.21,129.18,7.7409]
[1725585026566,20.0,129.21,129.2,7.7399]
[1725585026870,7.7371,129.25,129.21,7.7391]
[1725585027251,7.7363,129.26,129.21,7.7391]
[1725585028065,20.0,129.25,129.21,7.7391]
[1725585031285,27.7374,129.25,129.2,7.7398]
[1725585033384,27.7374,129.25,129.21,7.7392]
[1725585035064,20.0,129.25,129.22,7.7387]
[1725585036270,20.0,129.26,129.23,7.738]
[1725585036469,20.0,129.26,129.22,7.7385]
[1725585038082,27.7364,129.26,129.22,7.7385]
[1725585039381,20.0,129.26,129.23,7.7381]
[1725585039583,20.0,129.26,129.24,7.7374]
[1725585039897,20.0,129.27,129.24,7.7374]
[1725585042188,20.0,129.27,129.23,27.0828]
[1725585042376,27.7358,129.27,129.23,27.0828]
[1725585042580,7.7367,129.26,129.21,23.3707]